{"text_format":"2","workbook":"xlsx","n_sheets":1,"sheets":["Tanito_Kozepisk"],"not_rendered":{"charts":0,"images":0,"macros":0,"external_links":0,"defined_names":1,"comments":0,"pivot_tables":0},"unopened":[],"bounds":{"document_bytes":16777216,"sheet_cells":100000,"run_cost":"one","rows_first":2000,"rows_last":500,"rows_between":2000,"halvings":0,"cell_chars":16384,"cell_head_chars":4096},"cells_cut":0,"cells_raw":0,"read":"whole","date_system":"1900"}

{"sheet":"Tanito_Kozepisk","index":0,"n_rows":86,"n_cols":15,"rows_kept":86,"cut":false,"hidden":false,"merged":[[72,0,72,14],[0,0,0,14],[1,0,2,4],[1,5,1,14],[2,5,2,6],[2,7,2,8],[2,9,2,10],[2,11,2,12],[2,13,2,14]]}
["Az Informatikai Intézet minden előadás és gyakorlatból álló tárgyánál az előadás és a gyakorlat párhuzamos  felvétele, az előadások vizsgáinak  a gyakorlat teljesítettsége feltétel legyen beállítva (ahogyan eddig is volt). "]
["TR5. Tanítói szakképzettséget követő középiskolai tanári szakképzettséget adó egy szakos 5 féléves 150 kredites tanári mesterképzés",{"$nulls":4},"Félévek"]
[{"$nulls":5},1,null,2,null,3,null,4,null,5]
["Kód","Tárgy(elem) elnevezése","Típus","Tárgyfelelős ","Előfeltétel","ó","kr","ó","kr","ó","kr","ó","kr","ó","kr"]
["IBL104E","Programozás alapjai","ea","Gergely Tamás","-",24,4]
["IBL104L","Programozás alapjai","gy","Gergely Tamás","-",18,4]
[" ITN302MG","Programozási nyelvek a közoktatásban","gy","Holló Csaba",null,12,2]
[" ITN101E","Az informatika műszaki alkalmazásai","ea","Mingesz Róbert Zoltán","-",6,2]
["ITN101G","Az informatika műszaki alkalmazásai","gy","Mingesz Róbert Zoltán","-",12,2]
[" ITNJ001AG","Számítógéppel segített készségfejlesztés az általános iskolában","gy","Balogh János","-",18,3]
["IBL162E","Számítógép architektúrák ea","ea","Nagy Antal","-",12,3]
[" ITN303ME","Információs társadalom alapismeretek","ea","Szabó Péter Gábor","-",12,3]
[" MTNI001G","Praktikum informatikatanároknak","gy","Katonáné Horváth Eszter",null,12,2]
[" MTNI002G","Prekalkulus","gy","Fülöp Vanda",null,12,2]
["MTNI003E","Matematika informatikusoknak","ea","Fülöp Vanda",null,null,null,12,3]
[" MTNI003G","Matematika informatikusoknak","gy","Fülöp Vanda",null,null,null,12,2]
[" ITN311MKE","Operációs rendszerek az iskolában","ea","Nagy Csaba","-",null,null,6,1]
["ITN311MKG","Operációs rendszerek az iskolában","gy","Nagy Csaba","-",null,null,12,2]
[" ITN111E","Informatikai alapismeretek","ea","Németh Tamás","-",null,null,6,2]
[" ITN306ME","Oktatást támogató informatikai rendszerek","ea","Németh Tamás",null,null,null,6,1]
[" ITN306MG","Oktatást támogató informatikai rendszerek","gy","Németh Tamás",null,null,null,12,2]
["IBL852E","Programozási ismeretek","ea","Gergely Tamás"," ITN103G Programozás alapjai VAGY \nITN850G Programozási alapismeretek",null,null,12,3]
["IBL852L","Programozási ismeretek","gy","Gergely Tamás"," ITN103G Programozás alapjai VAGY \nITN850G Programozási alapismeretek",null,null,12,2]
[" ITN714E","Webtervezés","ea","Holló Csaba"," ITN852G Programozási ismeretek \nPÁRHUZAMOS",null,null,12,2]
[" ITN714G","Webtervezés","gy","Holló Csaba"," ITN852G Programozási ismeretek \nPÁRHUZAMOS",null,null,6,2]
[" ITN305ME","Információs technológiák","ea","Holló Csaba",null,null,null,6,1]
[" ITN305MG","Információs technológiák","gy","Holló Csaba",null,null,null,6,1]
[" ITN301ME","Informatikai alkalmazások","ea","Berend Gábor","-",null,null,6,1]
[" ITN301MG","Informatikai alkalmazások","gy","Berend Gábor","-",null,null,12,2]
[" ITN3071G","Elemi informatika 1.","gy","Farkas Richárd",{"$nulls":5},18,3]
[" ITN304ME","Algoritmizálás","ea","Farkas Richárd József"," ITN103G Programozás alapjai VAGY \nITN850G Programozási alapismeretek",{"$nulls":4},12,2]
[" ITN304MG","Algoritmizálás","gy","Farkas Richárd József"," ITN103G Programozás alapjai VAGY \nITN850G Programozási alapismeretek",{"$nulls":4},6,2]
[" ITN853E","Számítógépes grafika alapjai","ea","Németh Gábor"," ITN103G Programozás alapjai VAGY \nITN850G Programozási alapismeretek",{"$nulls":4},10,2]
[" ITN853G","Számítógépes grafika alapjai","gy","Németh Gábor"," ITN103G Programozás alapjai VAGY \nITN850G Programozási alapismeretek",{"$nulls":4},8,2]
[" ITN407KE","Számítógép hálózatok","ea","Bilicki Vilmos","-",null,null,12,2]
[" ITN407KG","Számítógép hálózatok","gy","Bilicki Vilmos","-",null,null,6,2]
[null,"Szkriptnyelvek","ea","Holló Csaba"," ITN714E Webtervezés",{"$nulls":4},12,2]
[null,"Szkriptnyelvek","gy","Holló Csaba"," ITN714E Webtervezés",{"$nulls":4},6,2]
[" ITN312ME","Adatbázisok az iskolában","ea","Németh Gábor",{"$nulls":5},6,1]
["ITN312MG","Adatbázisok az iskolában","gy","Németh Gábor",{"$nulls":5},12,2]
["IBL670e","Térinformatika ea","ea","Kardos Péter","-",{"$nulls":4},12,2]
["IBL670g","Térinformatika lab","gy","Kardos Péter","-",{"$nulls":4},6,2]
[" ITN102G","Problémamegoldó szeminárium","gy","Németh Tamás"," ITN103G Programozás alapjai VAGY \nITN850G Programozási alapismeretek",{"$nulls":4},18,3]
[" ITN3072G","Elemi informatika 2.","gy","Farkas Richárd / Rozgonyi Borus Ferenc",{"$nulls":7},12,2]
[" ITN041E","Multimédia","ea","Nyúl László,"," ITN103G Programozás alapjai VAGY \nITN850G Programozási alapismeretek",{"$nulls":6},12,2]
[" ITN041G","Multimédia","gy","Nyúl László,"," ITN103G Programozás alapjai VAGY \nITN850G Programozási alapismeretek",{"$nulls":6},6,2]
[" ITNJ004AG","Számítógépes oktatóprogramok","gy","Balogh János",{"$nulls":7},18,3]
[null,"Számítógépes statisztika és közelítő számítások","ea","Szabó Péter Gábor",{"$nulls":7},12,3]
[null,"Számítógépes statisztika és közelítő számítások","gy","Szabó Péter Gábor",{"$nulls":7},6,1]
[" ITN402E","Operációs rendszerek","ea","Nagy Antal"," ITN111E Informatikai alapismeretek",{"$nulls":6},12,2]
[" ITN402G","Operációs rendszerek","gy","Nagy Antal"," ITN111E Informatikai alapismeretek",{"$nulls":6},6,2]
["IML401E","Személyes adatok védelmének jogi, etikai és informatikai kérdései","ea.","Alexin Zoltán",{"$nulls":7},12,3]
[null,"Döntései rendszerek","ea.","Pluhár András",{"$nulls":7},12,2]
[null,"Döntési rendszerek","gy.","Pluhár András",{"$nulls":7},6,2]
[" ITN102KG","Programozűsi versenyek felodatainak megoldása","gy","Siket István","-",{"$nulls":6},12,2]
[" ITN512KE","Számítás-tudomány alapjai","ea","Gazdag Zsolt","MTNI001G Praktikum",{"$nulls":8},14,3]
[" ITN512KG","Számítás-tudomány alapjai","gy","Gazdag Zsolt","MTNI001G Praktikum",{"$nulls":8},10,2]
["ITN-SZV","Szabadon választott (informatika)",null,null,null,18,3]
["ITN-SZV","Szabadon választott (informatika)",{"$nulls":9},18,3]
["Összesen",{"$nulls":4},{"$f":"SUM(F5:F59)","v":156},30,156,31,126,25,144,29,24,5]
[" TO-ITNTM1E","Szakmódszertan 1.\n(informatika) előadás","ea","Holló Csaba","Kurzus jelenztkezés felt.:\nProgramozási alapjai ea.\nProgramozási nyelvek a közoktatásban\nAz informatika műszaki alkalmazásai gy.",{"$nulls":4},6,1]
[" TO-ITNTM1G","Szakmódszertan 1.\n(informatika) gyakorlat","gy","Holló Csaba / Rozgonyi",{"$nulls":5},12,2]
[" TO-ITNTM1E","Szakmódszertan 2.\n(informatika) előadás","ea","Holló Csaba","Kurzus jelenztkezés felt.:\nInformációs technológiák ea.\nInformatikai alkalmazások gy.\nAlgoritmizálás gy.\nVizsga jelenztkezés felt.:\nAdatbázisok az iskolában gy.\nInformatikai alapismeretek\nOperációs rendszerek az iskolában gy.\nOktatást támogató informatikai rendszerek gy.\nElemi informatika 1.",{"$nulls":6},6,1]
[" TO-ITNTM1G","Szakmódszertan 2.\n(informatika) gyakorlat","gy","Holló Csaba / Rozgonyi",{"$nulls":7},12,2]
["OTMR-5","Közösségi tanítási gyakorlat (csak hogyha nincs meg a 3 éves előzetes közoktatási gyakorlat)",{"$nulls":9},15,0]
[null,"Csoportos tanítási gyakorlat",{"$nulls":12},2]
[null,"Összefüggő tanítási gyakorlat",{"$nulls":12},18]
[null,"Összefüggő tanítási gyakorlatot kísérő eminárium",{"$nulls":12},2]
[null,"Portfólió",{"$nulls":12},2]
["Összesen",{"$nulls":4},{"$f":"SUM(F60:F69)","v":156},30,156,31,144,28,177,32,24,29]
[]
[]
["Szabadon választhatók (6 kr.)"]
["X-es kód","Bármilyen SZTE-s tárgy"]
[null,"Kriptográfia és adatbiztonság","ea","Németh Zoltán","MTNI001G Praktikum\nIBL104E vagy IBL104L Programozás alapjaii",{"$nulls":4},13,3]
[null,"Kriptográfia és adatbiztonság","gy","Németh Zoltán","MTNI001G Praktikum\nIBL104E vagy IBL104L Programozás alapjai",{"$nulls":4},5,1]
[" ITN154KE","Mesterséges intelligencia","ea","Jelasity Márk","-",{"$nulls":8},12,3]
[" ITN154KG","Mesterséges intelligencia","gy","Jelasity Márk","-",{"$nulls":8},6,1]
["IBML370e","Beágyazott rendszerek","ea","Kiss Ákos",{"$nulls":9},12,3]
["IBML370g","Beágyazott rendszerek","gy","Kiss Ákos",{"$nulls":9},12,2]
["IBL470e","Logikai következtetési rendszerek (ea)","ea.","Gazdag Zsolt","MTNI001G Praktikum",{"$nulls":6},13,3]
["IBL470g","Logikai következtetési rendszerek (gy)","gy.","Gazdag Zsolt","MTNI001G Praktikum",{"$nulls":6},5,1]
[" ITN405KE","Programozási nyelvek","ea","Kertész Attila","-",{"$nulls":6},12,2]
[" ITN405KG","Programozási nyelvek","gy","Kertész Attila","-",{"$nulls":6},6,2]
[" ITN404E","Algoritmusok és adatszerk. II.","ea","Farkas Richárd"," ITN304ME Algoritmizálás I.",{"$nulls":6},2,3]
[" ITN404G","Algoritmusok és adatszerk. II.","gy","Farkas Richárd"," ITN304ME Algoritmizálás I.",{"$nulls":6},1,1]